[Event "EYCC 2017"]
[Site "Mamaia"]
[Date "2017.09.12"]
[Round "7"]
[White "Hajdu, Marton Abris"]
[Black "Bartodziej, Bartosz"]
[Result "0-1"]
[ECO "B28"]
[WhiteElo "1280"]
[BlackElo "1402"]
[Annotator "NA"]
[PlyCount "112"]
[EventDate "2017.??.??"]
[EventType "swiss"]
[EventCountry "ROU"]
[SourceTitle "playchess.com"]
[Source "ChessBase"]
[SourceQuality "1"]
[TimeControl "40/5400+30:1800+30"]

1. e4 c5 {[%emt 0:00:14]} 2. Nf3 {[%emt 0:00:00]} a6 {[%emt 0:00:20]} 3. c4 {[%emt 0:00:00]} Nc6 {[%emt 0:00:39]} 4. d4 {[%emt 0:00:24]} cxd4 {[%emt 0:01:38]} 5. Nxd4 {[%emt 0:00:12]} e5 {[%emt 0:01:41]} 6. Nc2 {[%emt 0:00:44]} Nf6 {[%emt 0:02:13]} 7. Nc3 {[%emt 0:01:00]} Bc5 {[%emt 0:02:05]} 8. Be3 {[%emt 0:00:50]} Bxe3 {[%emt 0:02:56]} 9. Nxe3 {[%emt 0:00:10]} d6 {[%emt 0:00:48]} 10. Be2 {[%emt 0:02:30]} O-O {[%emt 0:00:50]} 11. O-O {[%emt 0:00:59]} Be6 {[%emt 0:03:47]} 12. b3 {[%emt 0:03:15]} Rc8 {[%emt 0:02:26]} 13. Ncd5 {[%emt 0:01:02]} Nxe4 {[%emt 0:04:11]} 14. Bd3 {[%emt 0:01:34]} Nf6 {[%emt 0:05:01]} 15. Qb1 {[%emt 0:00:32]} h6 {[%emt 0:01:58]} 16. Nxf6+ Qxf6 {[%emt 0:02:35]} 17. Rd1 {[%emt 0:12:16]} Rfd8 {[%emt 0:02:32]} 18. Bf5 {[%emt 0:03:21]} Rc7 {[%emt 0:11:46]} 19. Be4 {[%emt 0:02:35]} Nd4 {[%emt 0:02:47]} 20. Qd3 {[%emt 0:03:05]} Qg5 {[%emt 0:09:38]} 21. Bd5 {[%emt 0:05:49]} Bg4 {[%emt 0:07:00]} 22. Nxg4 {[%emt 0:02:18]} Qxg4 {[%emt 0:00:13]} 23. f3 {[%emt 0:00:49]} Qg5 {[%emt 0:04:32]} 24. Rac1 {[%emt 0:05:01]} Qf5 {[%emt 0:04:39]} 25. Be4 {[%emt 0:01:19]} Qg5 {[%emt 0:01:59]} 26. Bd5 {[%emt 0:00:42]} a5 {[%emt 0:01:49]} 27. Ra1 {[%emt 0:06:09]} b6 {[%emt 0:01:00]} 28. Rac1 {[%emt 0:04:08]} Nf5 {[%emt 0:01:36]} 29. Be4 {[%emt 0:05:52]} Ne3 {[%emt 0:01:01]} 30. Rd2 {[%emt 0:04:23]} Nxg2 {[%emt 0:01:34]} 31. Rxg2 {[%emt 0:04:40]} Qxc1+ {[%emt 0:00:26]} 32. Kf2 {[%emt 0:00:09]} Qb2+ {[%emt 0:00:46]} 33. Kf1 {[%emt 0:01:07]} Qa1+ {[%emt 0:01:12]} 34. Ke2 {[%emt 0:02:09]} Qxa2+ {[%emt 0:00:24]} 35. Kf1 {[%emt 0:00:15]} Qa1+ {[%emt 0:00:24]} 36. Ke2 {[%emt 0:00:11]} Qb2+ {[%emt 0:00:56]} 37. Kf1 {[%emt 0:00:24]} Qd4 {[%emt 0:00:38]} 38. Qb1 {[%emt 0:00:36]} a4 {[%emt 0:01:05]} 39. Bd5 {[%emt 0:00:50]} Kh8 {[%emt 0:05:40]} 40. bxa4 {[%emt 0:00:00]} Ra7 {[%emt 0:01:03]} 41. Rg4 {[%emt 0:08:23]} Qd2 {[%emt 0:04:35]} 42. Qxb6 {[%emt 0:01:22]} Qa5 {[%emt 0:04:44]} 43. Qe3 {[%emt 0:02:50]} Qxa4 {[%emt 0:02:41]} 44. Kg2 {[%emt 0:00:26]} Qc2+ {[%emt 0:00:59]} 45. Kh3 {[%emt 0:00:09]} Ra2 {[%emt 0:08:43]} 46. Qg1 {[%emt 0:00:47]} g5 {[%emt 0:01:50]} 47. Bxf7 Qe2 {[%emt 0:01:40]} 48. Bd5 {[%emt 0:02:28]} Rf8 {[%emt 0:01:46]} 49. Qh1 {[%emt 0:03:23]} Rd2 {[%emt 0:04:13]} 50. Qg1 {[%emt 0:11:31]} Rxf3+ {[%emt 0:01:19]} 51. Bxf3 {[%emt 0:01:04]} Qxf3+ {[%emt 0:00:15]} 52. Qg3 {[%emt 0:01:53]} Qf1+ {[%emt 0:00:22]} 53. Qg2 {[%emt 0:00:07]} Rxg2 {[%emt 0:00:22]} 54. Rxg2 {[%emt 0:00:05]} Kh7 {[%emt 0:00:52]} 55. Kg3 {[%emt 0:00:19]} Qf4+ {[%emt 0:00:15]} 56. Kh3 {[%emt 0:00:22]} Qh4# 0-1

[Event "EYCC 2017"]
[Site "Mamaia"]
[Date "2017.09.12"]
[Round "7"]
[White "Keskinler, Ela"]
[Black "Andries, Alexia"]
[Result "1-0"]
[ECO "B41"]
[WhiteElo "1276"]
[BlackElo "1110"]
[Annotator "NA RC"]
[PlyCount "95"]
[EventDate "2017.??.??"]
[EventType "swiss"]
[EventCountry "ROU"]
[SourceTitle "playchess.com"]
[Source "ChessBase"]
[SourceQuality "1"]
[TimeControl "40/5400+30:1800+30"]

1. e4 c5 2. Nf3 e6 3. d4 cxd4 4. Nxd4 a6 5. c4 Qc7 6. Nc3 Nf6 7. a3 Bc5 8. Be2 Bxd4 9. Qxd4 Nc6 10. Qd3 O-O 11. O-O d6 12. Bf4 e5 13. Be3 Be6 14. b4 Ne7 15. Rfd1 Rfd8 16. Rac1 Rac8 17. Na4 Qb8 18. Nb6 Rc6 19. f3 Nc8 20. Na4 Nh5 21. g3 Nf6 22. f4 exf4 23. Bxf4 Ng4 24. Qd4 Qc7 25. h3 Nf6 26. e5 Ne8 27. exd6 Ncxd6 28. c5 Bb3 29. cxd6 Qd7 30. Rxc6 bxc6 31. Nb6 Qe6 32. Bc4 Bxc4 33. Qxc4 Qxc4 34. Nxc4 Nf6 35. Ne5 Kf8 36. Nxc6 Rd7 37. Nb8 Rd8 38. Nxa6 Ke8 39. b5 Kd7 40. Nc5+ Kc8 41. b6 Kb8 42. d7+ Ka8 43. b7+ Ka7 44. b8=Q+ Rxb8 45. Bxb8+ Kxb8 46. d8=Q+ Ka7 47. Qc7+ Ka8 48. Rd8# 1-0

[Event "EYCC 2017"]
[Site "Mamaia"]
[Date "2017.09.12"]
[Round "7"]
[White "Kirtadze, Anastasia"]
[Black "Zavivaeva, Evelina"]
[Result "1/2-1/2"]
[ECO "A40"]
[WhiteElo "1193"]
[BlackElo "1406"]
[Annotator "NA RC"]
[PlyCount "122"]
[EventDate "2017.??.??"]
[EventType "swiss"]
[EventCountry "ROU"]
[SourceTitle "playchess.com"]
[Source "ChessBase"]
[SourceQuality "1"]
[TimeControl "40/5400+30:1800+30"]

1. d4 {[%emt 0:00:00]} Nf6 {[%emt 0:00:06]} 2. c4 {[%emt 0:00:16]} e6 {[%emt 0:00:08]} 3. g3 {[%emt 0:00:07]} Bb4+ {[%emt 0:00:14]} 4. Bd2 {[%emt 0:00:11]} Qe7 {[%emt 0:00:05]} 5. Bg2 {[%emt 0:00:13]} Nc6 {[%emt 0:00:10]} 6. d5 {[%emt 0:01:12]} exd5 {[%emt 0:02:43]} 7. cxd5 {[%emt 0:00:32]} Ne5 {[%emt 0:02:16]} 8. Qb3 {[%emt 0:00:40]} Bxd2+ {[%emt 0:04:58]} 9. Nxd2 {[%emt 0:00:36]} d6 10. Ngf3 {[%emt 0:08:47]} Nxf3+ {[%emt 0:06:46]} 11. Nxf3 {[%emt 0:01:31]} O-O {[%emt 0:03:56]} 12. Rc1 {[%emt 0:03:58]} Bf5 {[%emt 0:04:14]} 13. O-O {[%emt 0:00:49]} Be4 {[%emt 0:07:49]} 14. Rfd1 {[%emt 0:04:57]} Rfe8 {[%emt 0:04:22]} 15. Qc4 {[%emt 0:41:20]} c6 {[%emt 0:05:08]} 16. dxc6 {[%emt 0:00:25]} bxc6 {[%emt 0:00:25]} 17. Qd4 {[%emt 0:02:26]} Rad8 {[%emt 0:01:43]} 18. Bf1 {[%emt 0:03:20]} h6 {[%emt 0:05:15]} 19. Rc3 {[%emt 0:02:46]} Qb7 {[%emt 0:04:32]} 20. Rb3 {[%emt 0:00:57]} Qd7 {[%emt 0:04:07]} 21. Ra3 {[%emt 0:01:18]} c5 {[%emt 0:03:21]} 22. Qd2 {[%emt 0:01:13]} Qb7 {[%emt 0:05:17]} 23. Rb3 {[%emt 0:01:25]} Qc7 {[%emt 0:02:45]} 24. Rc3 {[%emt 0:01:00]} Nd5 {[%emt 0:02:32]} 25. Rcc1 {[%emt 0:00:10]} Qb7 {[%emt 0:01:13]} 26. b3 {[%emt 0:01:21]} f6 {[%emt 0:09:53]} 27. Ne1 {[%emt 0:02:01]} Nb6 {[%emt 0:03:36]} 28. f3 {[%emt 0:00:11]} Bg6 {[%emt 0:00:57]} 29. Bg2 {[%emt 0:00:55]} Qe7 {[%emt 0:01:23]} 30. e4 {[%emt 0:00:44]} d5 {[%emt 0:00:15]} 31. exd5 {[%emt 0:00:34]} Rxd5 32. Qc3 {[%emt 0:01:01]} Red8 {[%emt 0:02:30]} 33. Rxd5 {[%emt 0:00:17]} Rxd5 {[%emt 0:00:13]} 34. f4 {[%emt 0:00:33]} Be4 {[%emt 0:01:22]} 35. Qe3 {[%emt 0:00:29]} f5 {[%emt 0:02:14]} 36. g4 {[%emt 0:00:19]} Kf8 {[%emt 0:01:01]} 37. gxf5 {[%emt 0:00:31]} Bxg2 {[%emt 0:00:53]} 38. Nxg2 {[%emt 0:00:11]} Rxf5 {[%emt 0:00:22]} 39. Qxe7+ {[%emt 0:01:04]} Kxe7 {[%emt 0:00:10]} 40. Kf2 {[%emt 0:00:00]} g5 {[%emt 0:00:37]} 41. Kf3 {[%emt 0:02:02]} Kd6 {[%emt 0:01:16]} 42. Rc2 {[%emt 0:11:46]} h5 {[%emt 0:03:29]} 43. h3 {[%emt 0:00:53]} Nd5 {[%emt 0:01:52]} 44. Ke4 {[%emt 0:01:30]} Ke6 {[%emt 0:02:43]} 45. Rxc5 {[%emt 0:01:25]} Nf6+ {[%emt 0:02:36]} 46. Kd4 {[%emt 0:00:24]} gxf4 {[%emt 0:00:31]} 47. Rxf5 {[%emt 0:00:45]} Kxf5 {[%emt 0:00:14]} 48. Ne1 {[%emt 0:00:23]} Ne4 {[%emt 0:00:40]} 49. Nf3 {[%emt 0:01:31]} Nf2 {[%emt 0:01:13]} 50. Ng1 {[%emt 0:01:22]} Ne4 {[%emt 0:05:02]} 51. Nf3 {[%emt 0:01:18]} Ng3 {[%emt 0:01:31]} 52. Ng1 {[%emt 0:00:34]} Nf1 {[%emt 0:00:46]} 53. Nf3 {[%emt 0:01:20]} Ne3 {[%emt 0:00:39]} 54. Nh4+ {[%emt 0:04:49]} Kg5 {[%emt 0:00:42]} 55. Nf3+ {[%emt 0:00:08]} Kf5 {[%emt 0:00:19]} 56. Nh4+ {[%emt 0:00:20]} Kg5 {[%emt 0:00:06]} 57. Nf3+ {[%emt 0:00:06]} Kf5 {[%emt 0:00:12]} 58. Nh4+ {[%emt 0:01:40]} Kg5 {[%emt 0:00:11]} 59. Nf3+ {[%emt 0:00:04]} Kf6 {[%emt 0:03:57]} 60. Ke4 {[%emt 0:02:27]} Ng2 {[%emt 0:00:43]} 61. Ng1 {[%emt 0:00:52]} Ke6 {[%emt 0:04:10]} 1/2-1/2